Cogmind - Beta 9.1 @@@ ROGUE MODE // 2019.11.10 @ 12:47:27 Player: sideriver81 Result: Destroyed by S-10 Pest with Light Assault Rifle Performance ------------- Evolutions (1) 500 Regions Visited (2) 400 Robots Destroyed (0) 0 Value Destroyed (0) 0 Prototype IDs (3) 60 Alien Tech Used (0) 0 Bonus (200) 200 TOTAL SCORE: 1160 Bonus ------- Pacifist 200 Cogmind --------- Core Integrity 0/400 Matter 270/300 Energy 99/100 System Corruption 0% Temperature Cool (0) Location -9/Materials Parts ------- Power (1) Propulsion (2) Faulty Improved Flight Unit Utility (4) Visual Processing Unit Improved Signal Interpreter Weapon (2) Inventory (4) Light Ion Engine Light Ion Engine Light Treads Small Storage Unit Peak State ------------ Power Backup Power I Propulsion VTOL Module Utility Visual Processing Unit Improved Signal Interpreter Weapon Backup Laser I Inventory Light Ion Engine Light Ion Engine Light Treads Small Storage Unit [Rating: 8] Favorites ----------- Power Backup Power I Engine Backup Power I Propulsion Light Treads Treads Light Treads Hover Unit Backup Propulsion I Flight Unit VTOL Module Utility Improved Signal Interpreter Processor Improved Signal Interpreter Weapon Mining Laser Energy Gun Backup Laser I Special Weapon Mining Laser Build | -11 -10 -9 ------- Run | Scr Mat Mat Slots Evolved 2 | . . 2 Power . | . . . Propulsion . | . . . Utility 2 | . . 2 Weapon . | . . . Parts Attached 8 | 2 2 4 Power . | . . . Engine . | . . . Core . | . . . Reactor . | . . . Propulsion 4 | 2 . 2 Treads 2 | 2 . . Leg . | . . . Wheel . | . . . Hover . | . . . Flight 2 | . . 2 Utility 2 | . . 2 Device . | . . . Storage . | . . . Processor 2 | . . 2 Hackware . | . . . Protection . | . . . Artifact . | . . . Weapon 2 | . 2 . Energy Gun . | . . . Energy Cannon . | . . . Ballistic Gun . | . . . Ballistic Cannon . | . . . Launcher . | . . . Special Weapon 2 | . 2 . Impact Weapon . | . . . Slashing Weapon . | . . . Piercing Weapon . | . . . Special Melee Weapon . | . . . Unidentified Prototypes 1 | . . 1 Parts Lost 5 | . . 5 Power 1 | . . 1 Propulsion 2 | . . 2 Utility . | . . . Weapon 2 | . . 2 Highest Loss Streak 5 | . . 5 Average Slot Usage (%) 47 | . 60 36 Engine 7 | . 11 5 Treads 13 | . 28 1 Hover 1 | . . 2 Flight 4 | . . 9 Processor 7 | . . 12 Energy Gun 5 | . 8 3 Special Weapon 7 | . 13 2 Naked Turns . | . . . Heaviest Build 3 | . 3 3 Greatest Support 5 | 3 3 5 Greatest Overweight (x) . | . . . Average Overweight (x) . | . . . Largest Inventory Capacity 4 | 4 4 4 Average Capacity 4 | 4 4 4 Most Carried 4 | 4 4 4 Average Carried 3 | 2 4 3 Final Capacity 4 | 4 4 4 Final Carried 4 | 4 4 4 Class Distribution -------------------- 100% | Mutant Dominant Class ---------------- Mutant | -10/Materials Mutant | -9/Materials Resources | -11 -10 -9 ----------- Run | Scr Mat Mat Matter Collected 215 | 215 . . Remotely . | . . . Salvage Created . | . . . Parts . | . . . Haulers Intercepted . | . . . Recyclers Shooed . | . . . Parts Field Recycled . | . . . Retrieved Matter . | . . . Parts Self-Destructed . | . . . Prevented . | . . . Kills | -11 -10 -9 ------- Run | Scr Mat Mat Combat Hostiles Destroyed . | . . . Classes Destroyed . | . . . Best Kill Streak . | . . . Combat Bots Only . | . . . Max Kills in Single Turn . | . . . Gunslinging . | . . . Exploded . | . . . Melee . | . . . Uniques/NPCs Destroyed . | . . . Combat | -11 -10 -9 -------- Run | Scr Mat Mat Damage Taken 666 | . 119 547 Core 434 | . 33 401 Absorbed by Shields . | . . . Core Remaining (%) 93 | 100 86 . Volleys Fired . | . . . Largest . | . . . Hottest . | . . . Shots Fired . | . . . Gun . | . . . Cannon . | . . . Launcher . | . . . Special . | . . . Kinetic . | . . . Thermal . | . . . Explosive . | . . . Electromagnetic . | . . . Robot Hit Streak . | . . . Robot Miss Streak . | . . . Penetration Max . | . . . Secondary Targets . | . . . Shots Hit Robots . | . . . Core Hits 1 | . 1 . Critical Hits . | . . . Critical Kills . | . . . Critical Parts Destroyed . | . . . Melee Attacks . | . . . Impact . | . . . Slashing . | . . . Piercing . | . . . Sneak Attacks . | . . . Combat Hostiles . | . . . Follow-up Attacks . | . . . Damage Inflicted 2 | . 2 . Guns . | . . . Cannons . | . . . Explosions . | . . . Melee . | . . . Ramming 2 | . 2 . Kinetic . | . . . Thermal . | . . . Explosive . | . . . Electromagnetic . | . . . Impact . | . . . Slashing . | . . . Piercing . | . . . Highest Corruption . | . . . Average Corruption . | . . . Corruption Purged . | . . . Overload Shots . | . . . Overflow Damage . | . . . Projectiles . | . . . Explosions . | . . . Melee . | . . . Knockbacks . | . . . Impact . | . . . Kinetic . | . . . Secondary . | . . . Self-Inflicted Damage . | . . . Shots . | . . . Rammed 2 | . 2 . Targets Rammed 2 | . 2 . Kicked . | . . . Crushed . | . . . Highest Temperature 223 | . . 223 Average Temperature 111 | . . 111 Received Heat Transfer 198 | . . 198 Siege Activations . | . . . Robots Corrupted . | . . . Combat Hostiles . | . . . Parts Fried . | . . . Impact Corruptions . | . . . Robots Melted . | . . . Combat Hostiles . | . . . Parts Melted . | . . . Heat Transferred . | . . . Parts Sabotaged . | . . . Parts Stolen . | . . . Parts Stripped . | . . . Power Chain Reactions . | . . . Missiles Intercepted . | . . . Alert | -11 -10 -9 ------- Run | Scr Mat Mat Peak Influence 64 | . 47 64 Average Influence 27 | . 16 40 Maximum Alert Level . | . . . Low Security (%) 100 | . . . Level 1 . | . . . Level 2 . | . . . Level 3 . | . . . Level 4 . | . . . Level 5 . | . . . High Security . | . . . Max Security . | . . . Squads Dispatched 4 | . 1 3 Investigation 2 | . 1 1 Extermination . | . . . Reinforcement 2 | . . 2 Assault . | . . . Garrison . | . . . Intercept . | . . . Construction Impeded . | . . . Haulers Reinforced . | . . . Stealth | -11 -10 -9 --------- Run | Scr Mat Mat Distress Signals 1 | . . 1 Communications Jammed . | . . . Distress Signals . | . . . Times Spotted 32 | . 10 22 Peak Tracking Total 17 | . 5 17 Tactical Retreats 3 | . 1 2 Traps | -11 -10 -9 ------- Run | Scr Mat Mat Traps Triggered 3 | . 2 1 Indirectly . | . . . Trap Hack Attempts . | . . . Triggered . | . . . Disarmed . | . . . Reprogrammed . | . . . Reused . | . . . Traps Extracted . | . . . Installed . | . . . Triggered . | . . . Machines | -11 -10 -9 ---------- Run | Scr Mat Mat Machines Disabled . | . . . Max in Single Turn . | . . . Machines Sabotaged . | . . . Garrisons Compromised . | . . . Overloaded Fab Kills . | . . . Fab Network Shutdowns . | . . . Hacking | -11 -10 -9 --------- Run | Scr Mat Mat Machines Accessed 9 | . 5 4 Terminals 6 | . 3 3 Fabricators . | . . . Repair Stations 2 | . 1 1 Recycling Units 1 | . 1 . Scanalyzers . | . . . Garrison Access . | . . . Total Hacks 17 | . 11 6 Successful 7 | . 5 2 Failed 10 | . 6 4 Catastrophic 1 | . 1 . Database Lockouts . | . . . Manual 9 | . 4 5 Terminals 11 | . 6 5 Fabricators . | . . . Repair Stations 4 | . 3 1 Recycling Units 2 | . 2 . Scanalyzers . | . . . Garrison Access . | . . . Terminal Hacks 2 | . 2 . Prototype ID Bank 1 | . 1 . Branch Access Points 1 | . 1 . Fabricator Hacks . | . . . Repair Station Hacks 2 | . 1 1 Refit 2 | . 1 1 Recycling Unit Hacks 1 | . 1 . Report Inventory 1 | . 1 . Scanalyzer . | . . . Garrison Access Hacks . | . . . Unauthorized Hacks 8 | . 4 4 Terminals 2 | . 1 1 Botnet 2 | . 1 1 Fabricators . | . . . Repair Stations . | . . . Recycling Units . | . . . Scanalyzers . | . . . Garrison Access . | . . . Data Cores Recovered . | . . . Used . | . . . Hacking Detections 7 | . 5 2 Full Trace Events . | . . . Feedback Events . | . . . Feedback Blocked . | . . . Robot Schematics Acquired . | . . . Robots Built . | . . . Matter . | . . . Time . | . . . Total Robot Build Rating . | . . . Part Schematics Acquired . | . . . Parts Built . | . . . Matter . | . . . Time . | . . . Total Part Build Rating . | . . . Parts Repaired . | . . . Time . | . . . Parts Recycled . | . . . Recycled Matter . | . . . Retrieved Matter . | . . . Retrieved Components . | . . . Parts Scanalyzed . | . . . Part Schematics Acquired . | . . . Parts Damaged . | . . . Bothacking | -11 -10 -9 ------------ Run | Scr Mat Mat Used RIF Installer . | . . . Robots Hacked . | . . . Non-combat . | . . . Combat . | . . . Robot Hacks Applied . | . . . Relay Couplers Released . | . . . Robots Rewired . | . . . Allies Hacked . | . . . Hacks Repelled . | . . . Allies | -11 -10 -9 -------- Run | Scr Mat Mat Total Allies . | . . . Largest Group . | . . . Highest-Rated Group . | . . . Highest-Rated Ally . | . . . Total Orders . | . . . Ally Attacks . | . . . Total Damage . | . . . Kills . | . . . Allies Corrupted . | . . . Allies Melted . | . . . Intel | -11 -10 -9 ------- Run | Scr Mat Mat Robot Analysis Total . | . . . Derelict Logs Recovered . | . . . Drone Launches . | . . . Drone Recoveries . | . . . Exploration | -11 -10 -9 ------------- Run | Scr Mat Mat Turns Passed 329 | 26 137 166 Spaces Moved 610 | 38 258 314 Core 457 | 38 258 161 Treads . | . . . Legs . | . . . Wheels . | . . . Hover . | . . . Flight 153 | . . 153 Fastest Speed 40 | 50 50 40 Average Speed 47 | 50 50 45 Slowest Speed 50 | 50 50 50 Overloaded Moves . | . . . Propulsion Burnouts . | . . . Robots Hopped 5 | . . 5 Cave-ins Triggered . | . . . Exploration Rate (%) 36 | 4 61 45 Regions Visited 2 Branch Regions . Pre-discovered Areas . | . . . Known Exits Taken . | . . . Unknown Exits Taken 2 | 1 1 . Scrap Searched . | . . . Spaces Dug . | . . . Terrain Destroyed . | . . . Melee . | . . . Projectile . | . . . AOE . | . . . Actions | -11 -10 -9 --------- Run | Scr Mat Mat Total 642 | 43 265 334 Wait 15 | . 2 13 Move 598 | 37 257 304 Hop 5 | . . 5 Pick Up 6 | 4 . 2 Fast Attach 8 | 2 2 4 Attach . | . . . Detach 1 | . . 1 Swap . | . . . Drop 7 | . 2 5 Fire . | . . . Melee . | . . . Ram 2 | . 2 . Kick . | . . . Crush . | . . . Escape Stasis . | . . . Rewire . | . . . Trap . | . . . Miscellaneous . | . . . Route ------- -11/Scrapyard -10/Materials (discovered 3 exits: *Mat / *Min x2) -9/Materials (discovered 2 exits: *Min x2) History --------- Turn | Location | Event 8 | -11/Scrapyard | Discovered new exit (range 16) 27 | -11/Scrapyard | Entered Materials 46 | -10/Materials | Identified exit to Mines 159 | -10/Materials | Discovered new exit (range 11) 164 | -10/Materials | Entered another Materials area 164 | -9/Materials | Evolved 2 slots: Utility x2 209 | -9/Materials | Discovered new exit (range 8) 258 | -9/Materials | Core integrity fell below 50% 279 | -9/Materials | Lost 5 parts (1p2n2w) 306 | -9/Materials | Build established: Mutant 317 | -9/Materials | Core integrity fell below 20% 323 | -9/Materials | Discovered new exit (range 8) 326 | -9/Materials | Identified exit to Mines 330 | -9/Materials | Destroyed by S-10 Pest with Light Assault Rifle Last Messages --------------- 00269_ K-01 Serf cleans the Fusion Modulator. 00278_ R-06 Scavenger destroyed. 00279_ Triggered Alarm Trap. 00279_ An alarm sounds. 00279_ ALERT: Alarm triggered, dispatching investigation squad. 00283_ U-05 Engineer lays Concrete. 00285_ K-01 Serf collects debris. 00286_ ALERT: Hostiles spotted, dispatching reinforcements to Terminal M008. 00291_ K-01 Serf collects debris. 00307_ K-01 Serf cleans the Terminal. 00307_ Connecting with Terminal... >>Trojan(Botnet) Trojan loaded successfully. Testing... Terminal linked with 0 systems. Awaiting botnet instructions. 00318_ S-10 Pest destroyed. 00323_ EXIT=FOUND 00326_ EXIT=IDENTIFIED: MINES Map ----- +----------------------------------------------------+ | ??????????????????# # | | ??????????????????# [ # " | | ??????????????????# # " | | ??????????????????# # " | | ??????????????????# """ """ # | | ??????????????????# """ """ # " | | ??????????????????? """ """ # ] " | | ????????????????????? ??# " | | ???????????????????####+##### | | ???????????????????# ###+## | | ???#+###+########### | | ???# | | ???# % | | ???#### = | | ??????# s########## | | ?????## s##???????# ###+## | | ??#### #???????#### #### | | ?##!! #??????????# #??# | | ?#! > #??????????# #??#[ | | ?#! #??????????# #??# | | ?#! #??????????# #??# "" | | ?#! ### ###??????????# #??# "T | | ?##!!??# #????????????# #??# "" | | ??###??# #????????????# #??# | | ???????# #????????????# ???##+### | | ???????#@#????????????# ????# | | ???????# #????????????# #???# ### | | ???????# #????????????# #???# #?? | | ???????# #????????????# #####/### | | ???????#a#########+#### ## | | ???????# # | | ???????+ # | | ???????# ???? # | | ???????###???????????# + | | ?????????????????????# # | | ?????????????????????# # | | ?????????????????????# # | | ?????????????????????# ######## | | ?????????????????????# ######## | | ?????????????????????# | | ?????????????????????# ######## | | ?????????????????????# #??????? | | ?????????????????????# #??????? | | ?????????????????????# #??????? | | ?????????????????????# #??????? | | ?????????????????????# #??????? | | ?????????????????????# #??????? | | ?????????????????????# #??????? | | ?????????????????????# #??????? | | ?????????????????????# #??????? | +----------------------------------------------------+ Best States ------------- Heat Dissipation 28 Energy Generation 9 Energy Capacity 100 Matter Stores 295 Matter Capacity 300 Sight Range 18 Terrain Scan Density 10 Evasion (%) 62 Item Schematics ----------------- None Robot Schematics ------------------ None Fabricated ------------ Nothing Alien Tech Used ----------------- None Achievements -------------- None Challenges ------------ None Game ------ Seed SpikedPowerHumpback Manual? 0 Play Time 00:08:50 Cumulative 96.4 hours Start 2019.11.10 @ 12:39:43 End 2019.11.10 @ 12:47:27 Sessions 1 Manual Loads 0 Difficulty Rogue Special Mode None Game No. 33 Rogue -11 Adventurer 22 Explorer 1 Win Type - Total 3 Types 3/0/0/0/0/0/0 Lore% 30 Gallery% 60 Achievement% 46 Wizard Run 0 Options --------- ASCII 0 Keyboard 0 Movement Numpad Keybinds 0 Fullscreen 0 Font 20/Terminus Map View 76x50 Tactical HUD 1 Map Filters NONE Filters NONE Steam 1 RUN: 36953cb0-55a0-46bc-907b-0b9e8b2b04de